[Event "Titled Tuesday Blitz April 4 Early 2023"]
[White "Harriott, Tyrell"]
[Black "Omelja, Artem"]
[WhiteFideId "2086484"]
[BlackFideId "14119846"]
[WhiteElo "2107"]
[BlackElo "2404"]
[Result "0-1"]
[Round "10"]
[TimeControl "180+2"]
[Date "2023.04.04"]
[WhiteClock "0:00:54"]
[BlackClock "0:01:49"]

1. d4 {[%clk 0:02:59]}  Nf6 {[%clk 0:02:59]} 2. e3 {[%clk 0:02:58]}  c5 {[%clk 0:02:58]} 3. c3 {[%clk 0:02:58]}  b6 {[%clk 0:02:58]} 4. f4 {[%clk 0:02:58]}  Bb7 {[%clk 0:02:58]} 5. Nf3 {[%clk 0:02:58]}  d6 {[%clk 0:02:59]} 6. Be2 {[%clk 0:02:57]}  g6 {[%clk 0:02:59]} 7. O-O {[%clk 0:02:57]}  Bg7 {[%clk 0:03:00]} 8. Nbd2 {[%clk 0:02:57]}  O-O {[%clk 0:03:01]} 9. Bd3 {[%clk 0:02:55]}  Nbd7 {[%clk 0:03:01]} 10. f5 {[%clk 0:02:56]}  e5 {[%clk 0:02:59]} 11. fxe6 {[%clk 0:02:54]}  fxe6 {[%clk 0:02:59]} 12. Ng5 {[%clk 0:02:55]}  Qe7 {[%clk 0:02:57]} 13. Qe1 {[%clk 0:02:55]}  h6 {[%clk 0:02:54]} 14. Nge4 {[%clk 0:02:48]}  g5 {[%clk 0:02:50]} 15. Ng3 {[%clk 0:02:46]}  e5 {[%clk 0:02:35]} 16. Nf5 {[%clk 0:02:39]}  Qe6 {[%clk 0:02:34]} 17. dxc5 {[%clk 0:02:38]}  Nxc5 {[%clk 0:02:29]} 18. Bc2 {[%clk 0:02:35]}  Ng4 {[%clk 0:02:24]} 19. e4 {[%clk 0:02:31]}  d5 {[%clk 0:02:19]} 20. h3 {[%clk 0:02:14]}  Nf6 {[%clk 0:02:18]} 21. b4 {[%clk 0:01:57]}  Ncxe4 {[%clk 0:02:16]} 22. Nxe4 {[%clk 0:01:48]}  Nxe4 {[%clk 0:02:17]} 23. Nxg7 {[%clk 0:01:43]}  Kxg7 {[%clk 0:02:16]} 24. Be3 {[%clk 0:01:40]}  Ba6 {[%clk 0:02:12]} 25. Rxf8 {[%clk 0:01:38]}  Rxf8 {[%clk 0:02:13]} 26. a4 {[%clk 0:01:34]}  Rf1+ {[%clk 0:02:12]} 27. Qxf1 {[%clk 0:01:34]}  Bxf1 {[%clk 0:02:12]} 28. Rxf1 {[%clk 0:01:33]}  Nxc3 {[%clk 0:02:12]} 29. Bf5 {[%clk 0:01:29]}  Qd6 {[%clk 0:02:10]} 30. b5 {[%clk 0:01:28]}  d4 {[%clk 0:02:10]} 31. Bd2 {[%clk 0:01:28]}  Ne2+ {[%clk 0:02:10]} 32. Kf2 {[%clk 0:01:27]}  Nf4 {[%clk 0:02:11]} 33. g3 {[%clk 0:01:25]}  Nd5 {[%clk 0:02:05]} 34. Rc1 {[%clk 0:01:24]}  Nc3 {[%clk 0:01:50]} 35. g4 {[%clk 0:01:15]}  e4 {[%clk 0:01:46]} 36. Bxc3 {[%clk 0:01:13]}  dxc3 {[%clk 0:01:46]} 37. Rxc3 {[%clk 0:01:12]}  Qd2+ {[%clk 0:01:45]} 38. Kf1 {[%clk 0:01:11]}  Qxc3 {[%clk 0:01:46]} 39. Bxe4 {[%clk 0:01:10]}  Kf6 {[%clk 0:01:46]} 40. Bc6 {[%clk 0:01:08]}  Ke5 {[%clk 0:01:47]} 41. Ke2 {[%clk 0:01:07]}  Kd4 {[%clk 0:01:47]} 42. Kf2 {[%clk 0:01:04]}  Qd2+ {[%clk 0:01:47]} 43. Kf3 {[%clk 0:01:04]}  Qe3+ {[%clk 0:01:47]} 44. Kg2 {[%clk 0:01:04]}  Ke5 {[%clk 0:01:47]} 45. Kf1 {[%clk 0:00:59]}  Kf4 {[%clk 0:01:48]} 46. Kg2 {[%clk 0:00:56]}  Qd2+ {[%clk 0:01:48]} 47. Kf1 {[%clk 0:00:56]}  Kg3 {[%clk 0:01:49]} 48. Bb7 {[%clk 0:00:54]}  Qf2# {[%clk 0:01:49]} 0-1


[Site "https://www.chess.com"]

[Event "Titled Tuesday Blitz April 4 Early 2023"]
[White "Gatterer, Florian"]
[Black "Pajeken, Jakob Leon"]
[WhiteFideId "811688"]
[BlackFideId "12942839"]
[WhiteElo "2221"]
[BlackElo "2414"]
[Result "0-1"]
[Round "10"]
[TimeControl "180+2"]
[Date "2023.04.04"]
[WhiteClock "0:00:02"]
[BlackClock "0:01:22"]

1. b3 {[%clk 0:03:00]}  d5 {[%clk 0:02:51]} 2. Bb2 {[%clk 0:03:00]}  Bg4 {[%clk 0:02:51]} 3. Nf3 {[%clk 0:02:56]}  Nd7 {[%clk 0:02:51]} 4. g3 {[%clk 0:02:56]}  Ngf6 {[%clk 0:02:48]} 5. Bg2 {[%clk 0:02:55]}  e6 {[%clk 0:02:47]} 6. Ne5 {[%clk 0:02:50]}  Bf5 {[%clk 0:02:46]} 7. O-O {[%clk 0:02:46]}  Nxe5 {[%clk 0:02:43]} 8. Bxe5 {[%clk 0:02:45]}  Bd6 {[%clk 0:02:44]} 9. Bb2 {[%clk 0:02:41]}  e5 {[%clk 0:02:40]} 10. d3 {[%clk 0:02:34]}  c6 {[%clk 0:02:39]} 11. Nd2 {[%clk 0:02:34]}  O-O {[%clk 0:02:37]} 12. Qe1 {[%clk 0:02:34]}  d4 {[%clk 0:02:25]} 13. Nc4 {[%clk 0:02:23]}  b5 {[%clk 0:02:18]} 14. Nxd6 {[%clk 0:02:14]}  Qxd6 {[%clk 0:02:19]} 15. c3 {[%clk 0:02:09]}  Rad8 {[%clk 0:02:12]} 16. Rc1 {[%clk 0:01:47]}  c5 {[%clk 0:02:10]} 17. cxd4 {[%clk 0:01:39]}  exd4 {[%clk 0:02:11]} 18. Qa5 {[%clk 0:01:29]}  Qb6 {[%clk 0:02:08]} 19. Qd2 {[%clk 0:01:14]}  b4 {[%clk 0:02:02]} 20. a4 {[%clk 0:01:12]}  Nd5 {[%clk 0:01:59]} 21. Bxd5 {[%clk 0:00:53]}  Rxd5 {[%clk 0:01:59]} 22. Qf4 {[%clk 0:00:40]}  h6 {[%clk 0:01:52]} 23. Rc2 {[%clk 0:00:31]}  g5 {[%clk 0:01:50]} 24. Qd2 {[%clk 0:00:26]}  Re5 {[%clk 0:01:46]} 25. e4 {[%clk 0:00:23]}  Be6 {[%clk 0:01:43]} 26. f4 {[%clk 0:00:22]}  gxf4 {[%clk 0:01:42]} 27. gxf4 {[%clk 0:00:23]}  Rh5 {[%clk 0:01:42]} 28. Rf2 {[%clk 0:00:18]}  Bxb3 {[%clk 0:01:40]} 29. Rc1 {[%clk 0:00:14]}  Kh7 {[%clk 0:01:35]} 30. Kh1 {[%clk 0:00:14]}  Rg8 {[%clk 0:01:34]} 31. Rg1 {[%clk 0:00:13]}  Rxg1+ {[%clk 0:01:32]} 32. Kxg1 {[%clk 0:00:13]}  Rh4 {[%clk 0:01:29]} 33. Rg2 {[%clk 0:00:12]}  Qf6 {[%clk 0:01:28]} 34. f5 {[%clk 0:00:11]}  Rh5 {[%clk 0:01:26]} 35. Qf4 {[%clk 0:00:08]}  Rg5 {[%clk 0:01:25]} 36. Qc7 {[%clk 0:00:08]}  Qg7 {[%clk 0:01:23]} 37. Rxg5 {[%clk 0:00:07]}  Qxg5+ {[%clk 0:01:24]} 38. Kf2 {[%clk 0:00:05]}  Qd2+ {[%clk 0:01:24]} 39. Kg3 {[%clk 0:00:04]}  Qxb2 {[%clk 0:01:24]} 40. Qe5 {[%clk 0:00:02]}  Qe2 {[%clk 0:01:22]} 41. Kh4 {[%clk 0:00:02]}  Qe3 {[%clk 0:01:22]} 0-1


[Site "https://www.chess.com"]

[Event "Titled Tuesday Blitz April 4 Early 2023"]
[White "Okike, David"]
[Black "Tomaszewski, Kacper"]
[WhiteFideId "8500134"]
[BlackFideId "1127373"]
[WhiteElo "2232"]
[BlackElo "2211"]
[Result "1-0"]
[Round "10"]
[TimeControl "180+2"]
[Date "2023.04.04"]
[WhiteClock "0:00:46"]
[BlackClock "0:00:06"]

1. e4 {[%clk 0:02:50]}  e5 {[%clk 0:02:49]} 2. Nf3 {[%clk 0:02:46]}  Nf6 {[%clk 0:02:49]} 3. Nxe5 {[%clk 0:02:45]}  d6 {[%clk 0:02:49]} 4. Nf3 {[%clk 0:02:44]}  Nxe4 {[%clk 0:02:50]} 5. d4 {[%clk 0:02:45]}  Be7 {[%clk 0:02:48]} 6. Bd3 {[%clk 0:02:46]}  Nf6 {[%clk 0:02:47]} 7. O-O {[%clk 0:02:47]}  O-O {[%clk 0:02:47]} 8. c4 {[%clk 0:02:46]}  Re8 {[%clk 0:02:46]} 9. d5 {[%clk 0:02:46]}  Nbd7 {[%clk 0:02:46]} 10. h3 {[%clk 0:02:43]}  Nf8 {[%clk 0:02:44]} 11. Nc3 {[%clk 0:02:43]}  Ng6 {[%clk 0:02:44]} 12. Qc2 {[%clk 0:02:37]}  Nh5 {[%clk 0:02:43]} 13. Ne2 {[%clk 0:02:32]}  Bd7 {[%clk 0:02:29]} 14. Rb1 {[%clk 0:02:30]}  a5 {[%clk 0:02:23]} 15. b3 {[%clk 0:02:27]}  Qb8 {[%clk 0:02:19]} 16. a3 {[%clk 0:02:24]}  Rc8 {[%clk 0:02:07]} 17. g4 {[%clk 0:02:19]}  Nf6 {[%clk 0:02:06]} 18. Ned4 {[%clk 0:02:10]}  c5 {[%clk 0:02:02]} 19. Nf5 {[%clk 0:02:05]}  Bf8 {[%clk 0:02:02]} 20. Bg5 {[%clk 0:02:00]}  b5 {[%clk 0:01:53]} 21. Kg2 {[%clk 0:01:57]}  Ne8 {[%clk 0:01:45]} 22. h4 {[%clk 0:01:52]}  f6 {[%clk 0:01:41]} 23. Bd2 {[%clk 0:01:51]}  Ne5 {[%clk 0:01:41]} 24. Nxe5 {[%clk 0:01:50]}  fxe5 {[%clk 0:01:41]} 25. g5 {[%clk 0:01:47]}  g6 {[%clk 0:01:40]} 26. Ng3 {[%clk 0:01:43]}  Qb7 {[%clk 0:01:01]} 27. h5 {[%clk 0:01:40]}  Nc7 {[%clk 0:00:54]} 28. hxg6 {[%clk 0:01:38]}  hxg6 {[%clk 0:00:51]} 29. Bxg6 {[%clk 0:01:38]}  Bg7 {[%clk 0:00:50]} 30. Rh1 {[%clk 0:01:34]}  Ne6 {[%clk 0:00:49]} 31. Nh5 {[%clk 0:01:21]}  Nd4 {[%clk 0:00:43]} 32. Qd3 {[%clk 0:01:21]}  e4 {[%clk 0:00:34]} 33. Bxe4 {[%clk 0:01:19]}  Re8 {[%clk 0:00:29]} 34. Nf6+ {[%clk 0:01:18]}  Bxf6 {[%clk 0:00:28]} 35. gxf6 {[%clk 0:01:19]}  Rxe4 {[%clk 0:00:28]} 36. Qxe4 {[%clk 0:01:16]}  Bf5 {[%clk 0:00:28]} 37. Qf4 {[%clk 0:01:07]}  Qf7 {[%clk 0:00:28]} 38. Qg5+ {[%clk 0:01:04]}  Qg6 {[%clk 0:00:28]} 39. Qxg6+ {[%clk 0:01:04]}  Bxg6 {[%clk 0:00:29]} 40. Rbe1 {[%clk 0:01:04]}  Nxb3 {[%clk 0:00:24]} 41. Bc3 {[%clk 0:01:02]}  b4 {[%clk 0:00:24]} 42. Bb2 {[%clk 0:01:00]}  Nd2 {[%clk 0:00:22]} 43. Rh4 {[%clk 0:00:56]}  Rf8 {[%clk 0:00:13]} 44. Re2 {[%clk 0:00:55]}  Nxc4 {[%clk 0:00:10]} 45. Rxc4 {[%clk 0:00:53]}  Bd3 {[%clk 0:00:10]} 46. Rg4+ {[%clk 0:00:52]}  Kh7 {[%clk 0:00:07]} 47. Re6 {[%clk 0:00:50]}  Bf5 {[%clk 0:00:07]} 48. Rh4+ {[%clk 0:00:50]}  Kg6 {[%clk 0:00:08]} 49. Rxd6 {[%clk 0:00:50]}  Rg8 {[%clk 0:00:08]} 50. Kf3 {[%clk 0:00:48]}  c4 {[%clk 0:00:06]} 51. axb4 {[%clk 0:00:47]}  axb4 {[%clk 0:00:06]} 52. Bc1 {[%clk 0:00:47]}  c3 {[%clk 0:00:06]} 53. Rh6+ {[%clk 0:00:46]}  Kf7 {[%clk 0:00:06]} 54. Rb6 {[%clk 0:00:46]} 1-0


[Site "https://www.chess.com"]

[Event "Titled Tuesday Blitz April 4 Early 2023"]
[White "Turzo, Attila"]
[Black "Shukhman, Anna"]
[WhiteFideId "704954"]
[BlackFideId "54180058"]
[WhiteElo "2509"]
[BlackElo "2125"]
[Result "0-1"]
[Round "10"]
[TimeControl "180+2"]
[Date "2023.04.04"]
[WhiteClock "0:00:03"]
[BlackClock "0:00:18"]

1. e4 {[%clk 0:03:00]}  Nf6 {[%clk 0:03:00]} 2. e5 {[%clk 0:02:55]}  Nd5 {[%clk 0:03:00]} 3. d4 {[%clk 0:02:53]}  d6 {[%clk 0:02:59]} 4. Nf3 {[%clk 0:02:53]}  g6 {[%clk 0:02:58]} 5. Bc4 {[%clk 0:02:51]}  dxe5 {[%clk 0:02:59]} 6. Nxe5 {[%clk 0:02:49]}  Be6 {[%clk 0:02:58]} 7. Be2 {[%clk 0:02:44]}  Bg7 {[%clk 0:02:58]} 8. O-O {[%clk 0:02:41]}  O-O {[%clk 0:02:54]} 9. Nd2 {[%clk 0:02:34]}  c5 {[%clk 0:02:53]} 10. c3 {[%clk 0:02:28]}  cxd4 {[%clk 0:02:51]} 11. cxd4 {[%clk 0:02:29]}  Nc6 {[%clk 0:02:49]} 12. Nxc6 {[%clk 0:02:28]}  bxc6 {[%clk 0:02:50]} 13. Nb3 {[%clk 0:02:21]}  Rb8 {[%clk 0:02:49]} 14. Bd2 {[%clk 0:02:15]}  Bf5 {[%clk 0:02:42]} 15. Rc1 {[%clk 0:02:11]}  Nb4 {[%clk 0:02:34]} 16. Bxb4 {[%clk 0:02:07]}  Rxb4 {[%clk 0:02:35]} 17. Qd2 {[%clk 0:02:00]}  Rb6 {[%clk 0:02:28]} 18. Bf3 {[%clk 0:01:53]}  Qd6 {[%clk 0:02:22]} 19. Rfd1 {[%clk 0:01:47]}  Be6 {[%clk 0:02:17]} 20. Na5 {[%clk 0:01:13]}  Bd5 {[%clk 0:02:13]} 21. Nc4 {[%clk 0:01:05]}  Bxc4 {[%clk 0:02:10]} 22. Rxc4 {[%clk 0:01:05]}  Rd8 {[%clk 0:02:08]} 23. Qc2 {[%clk 0:01:01]}  a5 {[%clk 0:01:27]} 24. b3 {[%clk 0:01:00]}  h5 {[%clk 0:01:18]} 25. Bxc6 {[%clk 0:00:58]}  h4 {[%clk 0:01:13]} 26. h3 {[%clk 0:00:57]}  e6 {[%clk 0:01:08]} 27. Bf3 {[%clk 0:00:53]}  Qe7 {[%clk 0:01:07]} 28. Rc7 {[%clk 0:00:20]}  Qf6 {[%clk 0:01:03]} 29. d5 {[%clk 0:00:18]}  exd5 {[%clk 0:00:47]} 30. Rxd5 {[%clk 0:00:18]}  Qa1+ {[%clk 0:00:38]} 31. Qc1 {[%clk 0:00:15]}  Rxd5 {[%clk 0:00:32]} 32. Qxa1 {[%clk 0:00:11]}  Bxa1 {[%clk 0:00:29]} 33. Bxd5 {[%clk 0:00:12]}  Rd6 {[%clk 0:00:26]} 34. Bxf7+ {[%clk 0:00:12]}  Kf8 {[%clk 0:00:25]} 35. Kf1 {[%clk 0:00:11]}  Rd2 {[%clk 0:00:16]} 36. Bxg6 {[%clk 0:00:10]}  Rxa2 {[%clk 0:00:16]} 37. Rf7+ {[%clk 0:00:09]}  Kg8 {[%clk 0:00:16]} 38. Rf3 {[%clk 0:00:08]}  Bd4 {[%clk 0:00:16]} 39. Bf7+ {[%clk 0:00:07]}  Kg7 {[%clk 0:00:16]} 40. Bc4 {[%clk 0:00:06]}  Ra1+ {[%clk 0:00:16]} 41. Ke2 {[%clk 0:00:06]}  Ra2+ {[%clk 0:00:17]} 42. Kd3 {[%clk 0:00:06]}  Bxf2 {[%clk 0:00:15]} 43. Rf4 {[%clk 0:00:05]}  Bg3 {[%clk 0:00:15]} 44. Rg4+ {[%clk 0:00:04]}  Kf6 {[%clk 0:00:15]} 45. Bd5 {[%clk 0:00:05]}  Ra1 {[%clk 0:00:15]} 46. Kc4 {[%clk 0:00:05]}  Rc1+ {[%clk 0:00:15]} 47. Kb5 {[%clk 0:00:04]}  Be1 {[%clk 0:00:14]} 48. Bf3 {[%clk 0:00:03]}  Rc3 {[%clk 0:00:14]} 49. Ka4 {[%clk 0:00:02]}  Re3 {[%clk 0:00:14]} 50. Rf4+ {[%clk 0:00:03]}  Kg5 {[%clk 0:00:14]} 51. Rc4 {[%clk 0:00:03]}  Re5 {[%clk 0:00:14]} 52. Rc6 {[%clk 0:00:03]}  Re3 {[%clk 0:00:12]} 53. Rc5+ {[%clk 0:00:03]}  Kf4 {[%clk 0:00:13]} 54. Rxa5 {[%clk 0:00:03]}  Bxa5 {[%clk 0:00:13]} 55. Kxa5 {[%clk 0:00:04]}  Rxb3 {[%clk 0:00:13]} 56. Ka4 {[%clk 0:00:04]}  Rb2 {[%clk 0:00:14]} 57. Ka3 {[%clk 0:00:04]}  Rf2 {[%clk 0:00:14]} 58. Bc6 {[%clk 0:00:04]}  Kg3 {[%clk 0:00:14]} 59. Kb3 {[%clk 0:00:05]}  Rxg2 {[%clk 0:00:15]} 60. Bd7 {[%clk 0:00:04]}  Rh2 {[%clk 0:00:15]} 61. Kc3 {[%clk 0:00:03]}  Rxh3 {[%clk 0:00:15]} 62. Kd2 {[%clk 0:00:04]}  Rh2+ {[%clk 0:00:15]} 63. Ke1 {[%clk 0:00:04]}  Rf2 {[%clk 0:00:16]} 64. Bc8 {[%clk 0:00:03]}  Rf8 {[%clk 0:00:17]} 65. Be6 {[%clk 0:00:04]}  h3 {[%clk 0:00:18]} 66. Bd7 {[%clk 0:00:03]}  h2 {[%clk 0:00:18]} 0-1


[Site "https://www.chess.com"]

[Event "Titled Tuesday Blitz April 4 Early 2023"]
[White "Novikov, Evgenij"]
[Black "Koridze, Lile"]
[WhiteFideId "4125380"]
[BlackFideId "13612514"]
[WhiteElo "2242"]
[BlackElo "2047"]
[Result "1-0"]
[Round "10"]
[TimeControl "180+2"]
[Date "2023.04.04"]
[WhiteClock "0:00:10"]
[BlackClock "0:00:11"]

1. e4 {[%clk 0:03:00]}  c5 {[%clk 0:02:59]} 2. d4 {[%clk 0:02:59]}  cxd4 {[%clk 0:02:59]} 3. c3 {[%clk 0:03:00]}  d3 {[%clk 0:02:56]} 4. Bxd3 {[%clk 0:03:00]}  d6 {[%clk 0:02:55]} 5. Nf3 {[%clk 0:02:59]}  Nf6 {[%clk 0:02:55]} 6. O-O {[%clk 0:03:00]}  g6 {[%clk 0:02:54]} 7. Bf4 {[%clk 0:02:54]}  Bg7 {[%clk 0:02:54]} 8. Qe2 {[%clk 0:02:50]}  O-O {[%clk 0:02:54]} 9. h3 {[%clk 0:02:50]}  Nbd7 {[%clk 0:02:50]} 10. Nbd2 {[%clk 0:02:46]}  a6 {[%clk 0:02:49]} 11. Rad1 {[%clk 0:02:45]}  Qc7 {[%clk 0:02:49]} 12. Bb1 {[%clk 0:02:35]}  e5 {[%clk 0:02:25]} 13. Bg5 {[%clk 0:02:29]}  b5 {[%clk 0:02:25]} 14. a3 {[%clk 0:02:10]}  Bb7 {[%clk 0:02:24]} 15. Rfe1 {[%clk 0:01:57]}  Nc5 {[%clk 0:02:22]} 16. Bxf6 {[%clk 0:01:39]}  Bxf6 {[%clk 0:02:22]} 17. Nf1 {[%clk 0:01:39]}  Ne6 {[%clk 0:02:20]} 18. Ne3 {[%clk 0:01:36]}  Nf4 {[%clk 0:02:20]} 19. Qf1 {[%clk 0:01:34]}  Rad8 {[%clk 0:02:10]} 20. g3 {[%clk 0:01:32]}  Ne6 {[%clk 0:02:10]} 21. Nd5 {[%clk 0:01:27]}  Bxd5 {[%clk 0:02:10]} 22. Rxd5 {[%clk 0:01:21]}  Qc6 {[%clk 0:02:09]} 23. Red1 {[%clk 0:01:19]}  Nc7 {[%clk 0:02:07]} 24. R5d2 {[%clk 0:01:15]}  d5 {[%clk 0:02:08]} 25. exd5 {[%clk 0:01:12]}  Qc5 {[%clk 0:01:59]} 26. Qe2 {[%clk 0:01:06]}  Rxd5 {[%clk 0:01:52]} 27. Rxd5 {[%clk 0:01:03]}  Nxd5 {[%clk 0:01:53]} 28. Nd2 {[%clk 0:00:42]}  Bg7 {[%clk 0:01:40]} 29. Ne4 {[%clk 0:00:40]}  Qc6 {[%clk 0:01:39]} 30. Qf3 {[%clk 0:00:39]}  Ne7 {[%clk 0:01:15]} 31. Rd6 {[%clk 0:00:38]}  Qc8 {[%clk 0:00:54]} 32. Kg2 {[%clk 0:00:28]}  Nf5 {[%clk 0:00:51]} 33. Rd5 {[%clk 0:00:23]}  Rd8 {[%clk 0:00:48]} 34. Ba2 {[%clk 0:00:22]}  Rxd5 {[%clk 0:00:43]} 35. Bxd5 {[%clk 0:00:23]}  Qd7 {[%clk 0:00:44]} 36. Ng5 {[%clk 0:00:22]}  Nd6 {[%clk 0:00:40]} 37. h4 {[%clk 0:00:20]}  h6 {[%clk 0:00:40]} 38. Ne4 {[%clk 0:00:20]}  Nf5 {[%clk 0:00:38]} 39. b3 {[%clk 0:00:17]}  Kf8 {[%clk 0:00:26]} 40. c4 {[%clk 0:00:17]}  Nd4 {[%clk 0:00:23]} 41. Qe3 {[%clk 0:00:17]}  bxc4 {[%clk 0:00:21]} 42. bxc4 {[%clk 0:00:18]}  Qc7 {[%clk 0:00:17]} 43. Qc3 {[%clk 0:00:16]}  f5 {[%clk 0:00:16]} 44. Qb4+ {[%clk 0:00:16]}  Ke8 {[%clk 0:00:14]} 45. Nd6+ {[%clk 0:00:14]}  Kd7 {[%clk 0:00:14]} 46. c5 {[%clk 0:00:12]}  Bf8 {[%clk 0:00:11]} 47. Qa4+ {[%clk 0:00:11]}  Kd8 {[%clk 0:00:11]} 48. Qe8# {[%clk 0:00:10]} 1-0


[Site "https://www.chess.com"]

[Event "Titled Tuesday Blitz April 4 Early 2023"]
[White "Thecourseoisildur"]
[Black "Ansh M Shah"]
[BlackFideId "25033379"]
[WhiteElo "2498"]
[BlackElo "2084"]
[Result "1/2-1/2"]
[Round "10"]
[TimeControl "180+2"]
[Date "2023.04.04"]
[WhiteClock "0:00:03"]
[BlackClock "0:00:17"]

1. e4 {[%clk 0:03:00]}  c6 {[%clk 0:03:00]} 2. d4 {[%clk 0:02:59]}  d5 {[%clk 0:03:01]} 3. e5 {[%clk 0:02:58]}  Bf5 {[%clk 0:03:00]} 4. h4 {[%clk 0:02:58]}  h5 {[%clk 0:02:59]} 5. Bd3 {[%clk 0:02:58]}  Bxd3 {[%clk 0:02:59]} 6. Qxd3 {[%clk 0:02:59]}  Qa5+ {[%clk 0:03:00]} 7. Nd2 {[%clk 0:02:58]}  e6 {[%clk 0:03:00]} 8. Ne2 {[%clk 0:02:57]}  Ne7 {[%clk 0:03:00]} 9. b4 {[%clk 0:02:56]}  Qb5 {[%clk 0:02:59]} 10. c4 {[%clk 0:02:46]}  dxc4 {[%clk 0:02:59]} 11. Nxc4 {[%clk 0:02:45]}  Nd5 {[%clk 0:02:59]} 12. a4 {[%clk 0:02:12]}  Nxb4 {[%clk 0:02:55]} 13. axb5 {[%clk 0:02:11]}  Nxd3+ {[%clk 0:02:55]} 14. Kd2 {[%clk 0:02:09]}  Nxc1 {[%clk 0:02:56]} 15. Rhxc1 {[%clk 0:02:09]}  Nd7 {[%clk 0:02:56]} 16. bxc6 {[%clk 0:02:06]}  bxc6 {[%clk 0:02:57]} 17. Nd6+ {[%clk 0:01:59]}  Bxd6 {[%clk 0:02:57]} 18. exd6 {[%clk 0:02:00]}  O-O {[%clk 0:02:46]} 19. Rxc6 {[%clk 0:01:57]}  a5 {[%clk 0:02:40]} 20. Nc3 {[%clk 0:01:53]}  Rfd8 {[%clk 0:02:33]} 21. Ne4 {[%clk 0:01:37]}  Nf6 {[%clk 0:02:19]} 22. Nxf6+ {[%clk 0:01:36]}  gxf6 {[%clk 0:02:20]} 23. Ra3 {[%clk 0:01:30]}  Rd7 {[%clk 0:02:16]} 24. Ke3 {[%clk 0:01:16]}  Kg7 {[%clk 0:02:12]} 25. Ke4 {[%clk 0:01:12]}  a4 {[%clk 0:02:10]} 26. d5 {[%clk 0:00:56]}  Ra5 {[%clk 0:01:52]} 27. dxe6 {[%clk 0:00:51]}  fxe6 {[%clk 0:01:35]} 28. f3 {[%clk 0:00:16]}  f5+ {[%clk 0:01:24]} 29. Kf4 {[%clk 0:00:15]}  Kf6 {[%clk 0:01:25]} 30. g4 {[%clk 0:00:11]}  hxg4 {[%clk 0:01:05]} 31. fxg4 {[%clk 0:00:12]}  fxg4 {[%clk 0:01:06]} 32. Kxg4 {[%clk 0:00:13]}  Ke5 {[%clk 0:01:05]} 33. Rb6 {[%clk 0:00:07]}  Rg7+ {[%clk 0:00:50]} 34. Kf3 {[%clk 0:00:04]}  Kf5 {[%clk 0:00:42]} 35. Rd3 {[%clk 0:00:02]}  a3 {[%clk 0:00:20]} 36. d7 {[%clk 0:00:03]}  Rxd7 {[%clk 0:00:19]} 37. Rxd7 {[%clk 0:00:04]}  a2 {[%clk 0:00:20]} 38. Rd1 {[%clk 0:00:03]}  a1=Q {[%clk 0:00:19]} 39. Rxa1 {[%clk 0:00:03]}  Rxa1 {[%clk 0:00:20]} 40. Rb5+ {[%clk 0:00:04]}  Kg6 {[%clk 0:00:19]} 41. h5+ {[%clk 0:00:04]}  Kh6 {[%clk 0:00:19]} 42. Kg4 {[%clk 0:00:03]}  Ra4+ {[%clk 0:00:20]} 43. Kg3 {[%clk 0:00:03]}  Re4 {[%clk 0:00:20]} 44. Ra5 {[%clk 0:00:03]}  Rc4 {[%clk 0:00:17]} 45. Re5 {[%clk 0:00:03]}  Rc6 {[%clk 0:00:16]} 46. Kg4 {[%clk 0:00:02]}  Rc4+ {[%clk 0:00:16]} 47. Kg3 {[%clk 0:00:03]}  Rc6 {[%clk 0:00:16]} 48. Kf4 {[%clk 0:00:03]}  Ra6 {[%clk 0:00:16]} 49. Rc5 {[%clk 0:00:02]}  Rd6 {[%clk 0:00:14]} 50. Ke5 {[%clk 0:00:03]}  Rd5+ {[%clk 0:00:15]} 51. Rxd5 {[%clk 0:00:03]}  exd5 {[%clk 0:00:16]} 52. Kxd5 {[%clk 0:00:03]}  Kxh5 {[%clk 0:00:17]} 1/2-1/2


[Site "https://www.chess.com"]

[Event "Titled Tuesday Blitz April 4 Early 2023"]
[White "lluiss"]
[Black "Goltseva, Ekaterina"]
[BlackFideId "24173770"]
[WhiteElo "2242"]
[BlackElo "2200"]
[Result "1-0"]
[Round "10"]
[TimeControl "180+2"]
[Date "2023.04.04"]
[WhiteClock "0:00:07"]
[BlackClock "0:00:12"]

1. c4 {[%clk 0:03:00]}  e5 {[%clk 0:01:58]} 2. Nc3 {[%clk 0:02:03]}  Nf6 {[%clk 0:01:55]} 3. g3 {[%clk 0:01:59]}  c6 {[%clk 0:01:54]} 4. Nf3 {[%clk 0:01:56]}  e4 {[%clk 0:01:53]} 5. Nd4 {[%clk 0:01:54]}  Qb6 {[%clk 0:01:52]} 6. e3 {[%clk 0:01:52]}  d5 {[%clk 0:01:48]} 7. Bg2 {[%clk 0:01:38]}  Bc5 {[%clk 0:01:30]} 8. O-O {[%clk 0:01:31]}  Bxd4 {[%clk 0:01:23]} 9. exd4 {[%clk 0:01:30]}  Qxd4 {[%clk 0:01:23]} 10. cxd5 {[%clk 0:01:29]}  cxd5 {[%clk 0:01:22]} 11. d3 {[%clk 0:01:22]}  exd3 {[%clk 0:01:05]} 12. Re1+ {[%clk 0:01:17]}  Be6 {[%clk 0:01:04]} 13. Be3 {[%clk 0:01:10]}  Qg4 {[%clk 0:00:58]} 14. Qxd3 {[%clk 0:00:46]}  O-O {[%clk 0:00:55]} 15. Bd4 {[%clk 0:00:39]}  Qg6 {[%clk 0:00:48]} 16. Qxg6 {[%clk 0:00:37]}  hxg6 {[%clk 0:00:47]} 17. Bxf6 {[%clk 0:00:35]}  gxf6 {[%clk 0:00:48]} 18. Nxd5 {[%clk 0:00:35]}  Bxd5 {[%clk 0:00:42]} 19. Bxd5 {[%clk 0:00:35]}  Nc6 {[%clk 0:00:43]} 20. Bxc6 {[%clk 0:00:34]}  bxc6 {[%clk 0:00:44]} 21. Rac1 {[%clk 0:00:32]}  Rab8 {[%clk 0:00:44]} 22. b3 {[%clk 0:00:32]}  Rb6 {[%clk 0:00:44]} 23. Re7 {[%clk 0:00:32]}  Ra6 {[%clk 0:00:45]} 24. Rc2 {[%clk 0:00:30]}  Rd8 {[%clk 0:00:39]} 25. Rc7 {[%clk 0:00:28]}  Rd1+ {[%clk 0:00:39]} 26. Kg2 {[%clk 0:00:27]}  Ra1 {[%clk 0:00:39]} 27. Rd2 {[%clk 0:00:25]}  R1xa2 {[%clk 0:00:30]} 28. Rdd7 {[%clk 0:00:25]}  Re2 {[%clk 0:00:25]} 29. Rxf7 {[%clk 0:00:24]}  Raa2 {[%clk 0:00:24]} 30. Rxf6 {[%clk 0:00:23]}  Rab2 {[%clk 0:00:20]} 31. Rcxc6 {[%clk 0:00:20]}  Rxb3 {[%clk 0:00:18]} 32. Rxg6+ {[%clk 0:00:20]}  Kf7 {[%clk 0:00:19]} 33. Rgf6+ {[%clk 0:00:20]}  Ke7 {[%clk 0:00:19]} 34. h4 {[%clk 0:00:19]}  a5 {[%clk 0:00:18]} 35. h5 {[%clk 0:00:19]}  Rb5 {[%clk 0:00:17]} 36. h6 {[%clk 0:00:14]}  a4 {[%clk 0:00:17]} 37. h7 {[%clk 0:00:13]}  Rh5 {[%clk 0:00:15]} 38. Rh6 {[%clk 0:00:13]}  Rf5 {[%clk 0:00:11]} 39. h8=Q {[%clk 0:00:07]}  Rfxf2+ {[%clk 0:00:11]} 40. Kh3 {[%clk 0:00:07]}  Rh2+ {[%clk 0:00:11]} 41. Kg4 {[%clk 0:00:07]}  Re4+ {[%clk 0:00:12]} 42. Kf3 {[%clk 0:00:07]} 1-0


[Site "https://www.chess.com"]